lending/lending_fUSD_20240120
["ID","MTS","AMOUNT","RATE_DAILY","PERIOD"]
[312315301,1705769513775,-500.0,0.00042191,31]
[312315302,1705769513786,-500.0,0.00042191,31]
[312315303,1705769513795,-500.0,0.00042191,31]
[312315304,1705769513805,-500.0,0.00042191,31]
[312315305,1705769513815,-500.0,0.00042191,31]
[312315306,1705769513824,-500.0,0.00042191,31]
[312315307,1705769513833,-725.04,0.00042191,31]
[312315308,1705769513842,-154.0,0.000422,7]
[312315309,1705769513852,-500.0,0.000422,18]
[312315310,1705769513861,-1000.0,0.00042205,2]
[312315311,1705769513870,-835.55,0.0004221,5]
[312315312,1705769513880,-927.80279917,0.0004224,4]
[312315313,1705769513891,-2107.52303219,0.000423,3]
[312315314,1705769513900,-500.0,0.000423,18]
[312315315,1705769513910,-500.0,0.000424,19]
[312315316,1705769513919,-151.0,0.00042465,14]
[312315317,1705769513928,-510.0,0.00042465,120]
[312315318,1705769513936,-500.0,0.00042465,31]
[312315319,1705769513946,-549.98,0.00042465,2]
[312315320,1705769513955,-500.0,0.00042465,31]
[312315321,1705769513964,-500.0,0.00042465,31]
[312315322,1705769513973,-500.0,0.00042465,31]
[312315323,1705769513982,-500.0,0.00042465,31]
[312315324,1705769513991,-649.72,0.00042465,31]
[312315325,1705769514000,-1000.0,0.00042465,31]
[312315326,1705769514009,-500.0,0.00042465,31]
[312315327,1705769514019,-580.2,0.00042465,31]
[312315328,1705769514028,-500.0,0.00042465,30]
[312315329,1705769514037,-405.04,0.00042465,31]
[312315330,1705769514046,-500.0,0.00042465,31]
[312315331,1705769514055,-260.03761949,0.00042465,31]
[312315332,1705769514065,-457.38965376,0.00042465,31]
[312315333,1705769514075,-500.0,0.00042465,31]
[312315334,1705769514100,-500.0,0.00042465,31]
[312315335,1705769514117,-500.0,0.00042465,31]
[312315336,1705769514137,-500.0,0.00042465,31]
[312315337,1705769514156,-500.0,0.00042465,31]
[312315338,1705769514173,-500.0,0.00042465,31]
[312315339,1705769514190,-534.52,0.00042465,31]
[312315340,1705769514207,-414.18,0.00042465,31]
[312315341,1705769514227,-500.0,0.00042465,31]
[312315342,1705769514245,-500.0,0.00042465,31]
[312315343,1705769514264,-171.71,0.00042465,31]
[312315344,1705769514283,-500.0,0.00042465,31]
[312315345,1705769514295,-500.0,0.00042465,31]
[312315346,1705769514311,-500.0,0.00042465,31]
[312315347,1705769514330,-500.0,0.00042465,31]
[312315348,1705769514346,-500.68,0.00042465,31]
[312315349,1705769514361,-500.0,0.00042465,31]
[312315350,1705769514377,-303.03,0.00042465,31]
[312315351,1705769514392,-500.0,0.00042465,31]
[312315352,1705769514407,-500.0,0.00042465,31]
[312315353,1705769514422,-500.0,0.00042465,31]
[312315354,1705769514438,-500.0,0.00042465,31]
[312315355,1705769514453,-500.0,0.00042465,31]
[312315356,1705769514468,-500.0,0.00042465,31]
[312315357,1705769514483,-500.0,0.00042465,31]
[312315358,1705769514500,-500.0,0.00042465,31]
[312315359,1705769514515,-500.0,0.00042465,2]
[312315360,1705769514531,-500.0,0.00042465,31]
[312315361,1705769514546,-500.0,0.00042465,31]
[312315362,1705769514561,-623.89,0.00042465,31]
[312315363,1705769514574,-500.0,0.00042465,31]
[312315364,1705769514590,-494.28,0.00042465,31]
[312315365,1705769514605,-500.0,0.00042465,31]
[312315366,1705769514620,-500.0,0.00042465,31]
[312315367,1705769514635,-500.0,0.00042465,31]
[312315368,1705769514651,-500.0,0.00042465,7]
[312315369,1705769514666,-500.0,0.00042465,31]
[312315370,1705769514681,-500.0,0.00042465,31]
[312315371,1705769514696,-611.58175294,0.00042465,31]
[312315372,1705769514713,-500.0,0.00042465,31]
[312315373,1705769514727,-500.0,0.00042465,31]
[312315374,1705769514741,-500.0,0.00042465,31]
[312315375,1705769514756,-500.0,0.00042465,31]
[312315376,1705769514771,-500.0,0.00042465,31]
[312315377,1705769514788,-500.0,0.00042465,31]
[312315378,1705769514802,-500.0,0.00042465,31]
[312315379,1705769514815,-500.0,0.00042465,31]
[312315380,1705769514831,-500.0,0.00042465,31]
[312315381,1705769514846,-500.0,0.00042465,31]
[312315382,1705769514861,-500.0,0.00042465,31]
[312315383,1705769514875,-500.0,0.00042465,31]
[312315384,1705769514890,-500.0,0.00042465,31]
[312315385,1705769514905,-500.0,0.00042465,31]
[312315386,1705769514919,-607.66,0.00042465,31]
[312315387,1705769514933,-500.0,0.00042465,31]
[312315388,1705769514948,-500.0,0.00042465,31]
[312315389,1705769514962,-500.0,0.00042465,31]
[312315390,1705769514976,-500.0,0.00042465,31]
[312315391,1705769514991,-500.0,0.00042465,31]
[312315392,1705769515006,-562.90969842,0.00042465,31]
[312315393,1705769515021,-500.0,0.00042465,31]
[312315394,1705769515035,-500.0,0.00042465,31]
[312315395,1705769515049,-500.0,0.00042465,31]
[312315396,1705769515064,-500.0,0.00042465,31]
[312315397,1705769515078,-500.0,0.00042465,31]
[312315398,1705769515093,-500.0,0.00042465,31]
[312315399,1705769515108,-500.0,0.00042465,31]
[312315400,1705769515123,-507.69,0.00042465,31]
[312315401,1705769515137,-948.02,0.00042465,7]
[312315402,1705769515152,-500.0,0.00042465,31]
[312315403,1705769515167,-500.0,0.00042465,31]
[312315404,1705769515181,-500.0,0.00042465,31]
[312315405,1705769515194,-500.0,0.00042465,31]
[312315406,1705769515209,-222.53,0.00042465,31]
[312315407,1705769515224,-500.0,0.00042465,31]
[312315408,1705769515239,-500.0,0.00042465,31]
[312315409,1705769515253,-500.0,0.00042465,31]
[312315410,1705769515268,-500.0,0.00042465,31]
[312315411,1705769515281,-500.0,0.00042465,31]
[312315412,1705769515296,-500.0,0.00042465,31]
[312315413,1705769515310,-240.20197801,0.00042465,30]
[312315414,1705769515324,-500.0,0.00042465,31]
[312315415,1705769515338,-500.0,0.00042465,31]
[312315416,1705769515352,-500.0,0.00042465,31]
[312315417,1705769515366,-500.0,0.00042465,31]
[312315418,1705769515381,-500.0,0.00042465,31]
[312315419,1705769515396,-455.27,0.00042465,31]
[312315420,1705769515414,-500.0,0.00042465,31]
[312315421,1705769515428,-500.0,0.00042465,31]
[312315422,1705769515442,-500.0,0.00042465,31]
[312315423,1705769515456,-535.9,0.00042465,31]
[312315424,1705769515471,-500.0,0.00042465,31]
[312315425,1705769515486,-500.0,0.00042465,31]
[312315426,1705769515499,-644.49,0.00042465,31]
[312315427,1705769515514,-500.0,0.00042465,31]
[312315428,1705769515529,-500.0,0.00042465,31]
[312315429,1705769515542,-500.0,0.00042465,31]
[312315430,1705769515556,-560.11,0.00042465,31]
[312315431,1705769515570,-500.0,0.00042465,31]
[312315432,1705769515787,-500.0,0.00042465,31]
[312315433,1705769515802,-500.0,0.00042465,31]
[312315434,1705769515812,-500.0,0.00042465,31]
[312315435,1705769515821,-500.0,0.00042465,31]
[312315436,1705769515830,-500.0,0.00042465,31]
[312315437,1705769515839,-500.0,0.00042465,31]
[312315438,1705769515849,-500.0,0.00042465,31]
[312315439,1705769515858,-477.99,0.00042465,31]
[312315440,1705769515867,-500.0,0.00042465,31]
[312315441,1705769515876,-1000.0,0.00042465,7]
[312315442,1705769515885,-500.0,0.00042465,31]
[312315443,1705769515894,-500.0,0.00042465,31]
[312315444,1705769515904,-500.0,0.00042465,31]
[312315445,1705769515913,-500.0,0.00042465,31]
[312315446,1705769515922,-543.27,0.00042465,31]
[312315447,1705769515931,-500.0,0.00042465,31]
[312315448,1705769515940,-500.0,0.00042465,31]
[312315449,1705769515949,-500.0,0.00042465,31]
[312315450,1705769515958,-500.0,0.00042465,31]
[312315451,1705769515967,-500.0,0.00042465,31]
[312315452,1705769515976,-500.0,0.00042465,31]
[312315453,1705769515985,-500.0,0.00042465,31]
[312315454,1705769515993,-385.85,0.00042465,31]
[312315455,1705769516003,-500.0,0.00042465,31]
[312315456,1705769516013,-607.51,0.00042465,31]
[312315457,1705769516022,-500.0,0.00042465,31]
[312315458,1705769516031,-150.0,0.00042465,31]
[312315459,1705769516040,-500.0,0.00042465,31]
[312315460,1705769516050,-480.44,0.00042465,31]
[312315461,1705769516059,-500.0,0.00042465,31]
[312315462,1705769516068,-500.0,0.00042465,31]
[312315463,1705769516078,-500.0,0.00042465,31]
[312315464,1705769516087,-500.0,0.00042465,31]
[312315465,1705769516097,-500.0,0.00042465,31]
[312315466,1705769516107,-500.0,0.00042465,31]
[312315467,1705769516116,-500.0,0.00042465,31]
[312315468,1705769516125,-500.0,0.00042465,31]
[312315469,1705769516135,-500.0,0.00042465,31]
[312315470,1705769516144,-500.0,0.00042465,31]
[312315471,1705769516153,-3414.28,0.00042465,7]
[312315472,1705769516163,-500.0,0.00042465,31]
[312315473,1705769516172,-497.31,0.00042465,31]
[312315474,1705769516182,-500.0,0.00042465,31]
[312315475,1705769516191,-185.58,0.00042465,31]
[312315476,1705769516200,-583.17,0.00042465,31]
[312315477,1705769516210,-500.0,0.00042465,31]
[312315478,1705769516219,-1000.0,0.00042465,7]
[312315479,1705769516229,-521.90003399,0.00042465,7]
[312315480,1705769516239,-500.0,0.00042465,31]
[312315481,1705769516248,-324.28,0.00042465,31]
[312315482,1705769516257,-500.0,0.00042465,31]
[312315483,1705769516266,-500.0,0.00042465,31]
[312315484,1705769516276,-500.0,0.00042465,31]
[312315485,1705769516285,-500.0,0.00042465,31]
[312315486,1705769516295,-175.76,0.00042465,31]
[312315487,1705769516304,-500.0,0.00042465,31]
[312315488,1705769516313,-500.0,0.00042465,31]
[312315489,1705769516323,-500.0,0.00042465,31]
[312315490,1705769516332,-500.0,0.00042465,31]
[312315491,1705769516341,-500.0,0.00042465,31]
[312315492,1705769516350,-500.0,0.00042465,31]
[312315493,1705769516360,-500.0,0.00042465,31]
[312315494,1705769516369,-728.98,0.00042465,31]
[312315495,1705769516378,-500.0,0.00042465,31]
[312315496,1705769516388,-500.0,0.00042465,31]
[312315497,1705769516398,-500.0,0.00042465,31]
[312315498,1705769516408,-500.0,0.00042465,31]
[312315499,1705769516418,-546.65,0.00042465,31]
[312315500,1705769516428,-809.84,0.00042465,31]
[312315501,1705769516437,-500.0,0.00042465,31]
[312315502,1705769516447,-500.0,0.00042465,31]
[312315503,1705769516456,-500.0,0.00042465,31]
[312315504,1705769516465,-500.0,0.00042465,31]
[312315505,1705769516475,-500.0,0.00042465,31]
[312315506,1705769516484,-500.0,0.00042465,31]
[312315507,1705769516494,-500.0,0.00042465,31]
[312315508,1705769516503,-1431.29,0.00042465,31]
[312315509,1705769516513,-525.62,0.00042465,31]
[312315510,1705769516523,-500.0,0.00042465,31]
[312315511,1705769516533,-673.27,0.00042465,31]
[312315512,1705769516542,-500.0,0.00042465,31]
[312315513,1705769516552,-544.75,0.00042465,31]
[312315514,1705769516562,-500.0,0.00042465,31]
[312315515,1705769516572,-500.0,0.00042465,31]
[312315516,1705769516581,-578.64,0.00042465,31]
[312315517,1705769516591,-500.0,0.00042465,31]
[312315518,1705769516601,-1191.88,0.00042465,31]
[312315519,1705769516610,-500.35124658,0.00042465,31]
[312315520,1705769516620,-500.0,0.00042465,31]
[312315521,1705769516629,-500.0,0.00042465,31]
[312315522,1705769516638,-500.0,0.00042465,31]
[312315523,1705769516648,-500.0,0.00042465,31]
[312315524,1705769516657,-500.0,0.00042465,31]
[312315525,1705769516667,-500.0,0.00042465,31]
[312315526,1705769516677,-500.0,0.00042465,31]
[312315527,1705769516687,-500.0,0.00042465,31]
[312315528,1705769516696,-253.45,0.00042465,31]
[312315529,1705769516706,-1576.35,0.00042465,31]
[312315530,1705769516716,-530.0,0.00042465,31]
[312315531,1705769516726,-642.66,0.00042465,31]
[312315532,1705769516735,-2144.72,0.00042465,31]
[312315533,1705769516745,-486.58,0.00042465,31]
[312315534,1705769516754,-500.0,0.00042465,31]
[312315535,1705769516764,-3522.95,0.00042465,31]
[312315536,1705769516776,-500.0,0.00042465,31]
[312315537,1705769516785,-902.91,0.00042465,31]
[312315538,1705769516795,-1083.25,0.00042465,31]
[312315539,1705769516805,-644.85290364,0.00042465,10]
[312315540,1705769516818,-559.26,0.00042465,31]
[312315541,1705769516828,-500.0,0.00042465,31]
[312315542,1705769516838,-186.7,0.00042465,31]
[312315543,1705769516848,-559.11,0.00042465,31]
[312315544,1705769516858,-3400.09,0.00042465,31]
[312315545,1705769516869,-500.0,0.00042465,31]
[312315546,1705769516878,-500.0,0.00042465,31]
[312315547,1705769516888,-500.0,0.00042465,31]
[312315548,1705769516898,-500.0,0.00042465,31]
[312315549,1705769516907,-2557.93,0.00042465,31]
[312315550,1705769516917,-2158.37,0.00042465,31]
[312315551,1705769516927,-500.0,0.00042465,31]
[312315552,1705769516937,-500.0,0.00042465,31]
[312315553,1705769516947,-500.0,0.00042465,31]
[312315554,1705769516957,-500.0,0.00042465,31]
[312315555,1705769516967,-500.0,0.00042465,31]
[312315556,1705769516977,-500.0,0.00042465,31]
[312315557,1705769516987,-500.0,0.00042465,31]
[312315558,1705769516997,-500.0,0.00042465,31]
[312315559,1705769517007,-1837.09,0.00042465,31]
[312315560,1705769517018,-500.0,0.00042465,31]
[312315561,1705769517027,-639.3,0.00042465,31]
[312315562,1705769517037,-500.0,0.00042465,31]
[312315563,1705769517047,-715.22,0.00042465,31]
[312315564,1705769517056,-431.32982371,0.00042465,31]
[312315565,1705769517066,-500.0,0.00042465,31]
[312315566,1705769517075,-785.1,0.00042465,31]
[312315567,1705769517085,-500.0,0.00042465,31]
[312315568,1705769517095,-500.0,0.00042465,31]
[312315569,1705769517104,-619.09,0.00042465,10]
[312315570,1705769517113,-500.0,0.00042465,31]
[312315571,1705769517122,-500.0,0.00042465,31]
[312315572,1705769517133,-500.0,0.00042465,31]
[312315573,1705769517142,-416.9,0.00042465,31]
[312315574,1705769517152,-500.0,0.00042465,31]
[312315575,1705769517161,-500.0,0.00042465,31]
[312315576,1705769517171,-500.0,0.00042465,31]
[312315577,1705769517181,-500.0,0.00042465,31]
[312315578,1705769517190,-1172.98,0.00042465,31]
[312315579,1705769517200,-500.0,0.00042465,31]
[312315580,1705769517209,-907.01,0.00042465,31]
[312315581,1705769517219,-539.5,0.00042465,31]
[312315582,1705769517229,-1167.61,0.00042465,31]
[312315583,1705769517239,-2358.47,0.00042465,31]
[312315584,1705769517249,-500.0,0.00042465,31]
[312315585,1705769517257,-500.0,0.00042465,31]
[312315586,1705769517267,-500.0,0.00042465,31]
[312315587,1705769517276,-500.0,0.00042465,31]
[312315588,1705769517285,-337.08,0.00042465,31]
[312315589,1705769517296,-500.0,0.00042465,31]
[312315590,1705769517305,-8735.89,0.00042465,31]
[312315591,1705769517315,-799.0,0.00042465,31]
[312315592,1705769517324,-500.0,0.00042465,31]
[312315593,1705769517333,-500.0,0.00042465,31]
[312315594,1705769517343,-500.0,0.00042465,31]
[312315595,1705769517352,-500.0,0.00042465,31]
[312315596,1705769517361,-500.0,0.00042465,31]
[312315597,1705769517371,-237.74,0.00042465,31]
[312315598,1705769517380,-500.0,0.00042465,31]
[312315599,1705769517390,-321.34,0.00042465,31]
[312315600,1705769517402,-500.0,0.00042465,31]
[312315601,1705769517411,-500.0,0.00042465,31]
[312315602,1705769517419,-500.0,0.00042465,31]
[312315603,1705769517429,-500.0,0.00042465,31]
[312315604,1705769517438,-500.0,0.00042465,31]
[312315605,1705769517448,-500.0,0.00042465,31]
[312315606,1705769517458,-500.0,0.00042465,31]
[312315607,1705769517467,-514.41,0.00042465,31]
[312315608,1705769517477,-500.0,0.00042465,31]
[312315609,1705769517486,-500.0,0.00042465,31]
[312315610,1705769517496,-838.51,0.00042465,31]
[312315611,1705769517506,-500.0,0.00042465,31]
[312315612,1705769517515,-500.0,0.00042465,31]
[312315613,1705769517525,-500.0,0.00042465,31]
[312315614,1705769517534,-500.0,0.00042465,31]
[312315615,1705769517543,-3378.45,0.00042465,31]
[312315616,1705769517552,-500.0,0.00042465,31]
[312315617,1705769517561,-500.0,0.00042465,31]
[312315618,1705769517570,-385.72362295,0.00042465,31]
[312315619,1705769517580,-500.0,0.00042465,31]
[312315620,1705769517589,-595.37,0.00042465,31]
[312315621,1705769517598,-500.0,0.00042465,31]
[312315622,1705769517608,-500.0,0.00042465,31]
[312315623,1705769517617,-640.7,0.00042465,31]
[312315624,1705769517627,-500.0,0.00042465,31]
[312315625,1705769517637,-500.0,0.00042465,31]
[312315626,1705769517646,-500.0,0.00042465,31]
[312315627,1705769517656,-500.0,0.00042465,31]
[312315628,1705769517665,-500.0,0.00042465,20]
[312315629,1705769517674,-503.88,0.00042465,31]
[312315630,1705769517684,-500.0,0.00042465,31]
[312315631,1705769517693,-500.0,0.00042465,31]
[312315632,1705769517702,-500.0,0.00042465,31]
[312315633,1705769517711,-500.0,0.00042465,31]
[312315634,1705769517720,-500.0,0.00042465,31]
[312315635,1705769517729,-500.0,0.00042465,31]
[312315636,1705769517738,-500.0,0.00042465,31]
[312315637,1705769517748,-500.0,0.00042465,31]
[312315638,1705769517760,-500.0,0.00042465,31]
[312315639,1705769517771,-966.24,0.00042465,31]
[312315640,1705769517784,-1017.54,0.00042465,31]
[312315641,1705769517794,-500.0,0.00042465,31]
[312315642,1705769517804,-500.0,0.00042465,31]
[312315643,1705769517812,-500.0,0.00042465,31]
[312315644,1705769517822,-3366.05,0.00042465,31]
[312315645,1705769517831,-500.0,0.00042465,31]
[312315646,1705769517840,-500.0,0.00042465,31]
[312315647,1705769517850,-500.0,0.00042465,31]
[312315648,1705769517860,-500.0,0.00042465,31]
[312315649,1705769517869,-784.92,0.00042465,31]
[312315650,1705769517878,-500.0,0.00042465,31]
[312315651,1705769517888,-500.0,0.00042465,31]
[312315652,1705769517898,-500.0,0.00042465,31]
[312315653,1705769517907,-500.0,0.00042465,31]
[312315654,1705769517917,-566.31,0.00042465,31]
[312315655,1705769517928,-500.0,0.00042465,31]
[312315656,1705769517937,-1032.53,0.00042465,31]
[312315657,1705769517947,-500.0,0.00042465,31]
[312315658,1705769517956,-558.04,0.00042465,31]
[312315659,1705769517968,-500.0,0.00042465,31]
[312315660,1705769517977,-500.0,0.00042465,31]
[312315661,1705769517987,-500.0,0.00042465,31]
[312315662,1705769517997,-500.0,0.00042465,31]
[312315663,1705769518006,-500.0,0.00042465,31]
[312315664,1705769518016,-1104.62,0.00042465,31]
[312315665,1705769518027,-500.0,0.00042465,31]
[312315666,1705769518036,-500.0,0.00042465,31]
[312315667,1705769518046,-500.0,0.00042465,31]
[312315668,1705769518056,-500.0,0.00042465,31]
[312315669,1705769518066,-500.0,0.00042465,31]
[312315670,1705769518077,-500.0,0.00042465,31]
[312315671,1705769518214,-500.0,0.00042465,31]
[312315672,1705769518238,-451.88,0.00042465,31]
[312315673,1705769518248,-506.37,0.00042465,31]
[312315674,1705769518258,-511.07,0.00042465,31]
[312315675,1705769518268,-500.0,0.00042465,31]
[312315676,1705769518277,-500.0,0.00042465,31]
[312315677,1705769518287,-500.0,0.00042465,31]
[312315678,1705769518296,-301.51,0.00042465,31]
[312315679,1705769518305,-3024.43,0.00042465,2]
[312315680,1705769518315,-500.0,0.00042465,31]
[312315681,1705769518323,-563.68,0.00042465,31]
[312315682,1705769518333,-500.0,0.00042465,31]
[312315683,1705769518342,-649.00746254,0.00042465,60]
[312315684,1705769518352,-527.44,0.00042465,31]
[312315686,1705769518361,-500.0,0.00042465,31]
[312315687,1705769518371,-500.0,0.00042465,31]
[312315688,1705769518380,-566.83,0.00042465,31]
[312315689,1705769518389,-500.0,0.00042465,5]
[312315690,1705769518398,-558.27,0.00042465,31]
[312315691,1705769518407,-500.0,0.00042465,31]
[312315692,1705769518416,-928.23,0.00042465,31]
[312315693,1705769518426,-500.0,0.00042465,31]
[312315694,1705769518435,-276.63,0.00042465,31]
[312315695,1705769518444,-833.54,0.00042465,31]
[312315696,1705769518453,-500.0,0.00042465,31]
[312315697,1705769518462,-5309.8,0.00042465,31]
[312315698,1705769518471,-500.0,0.00042465,31]
[312315699,1705769518480,-500.0,0.00042465,31]
[312315700,1705769518490,-4892.18,0.00042465,31]
[312315701,1705769518499,-801.51,0.00042465,31]
[312315702,1705769518508,-1174.96,0.00042465,31]
[312315703,1705769518517,-500.0,0.00042465,31]
[312315704,1705769518526,-552.74515669,0.00042465,31]
[312315705,1705769518535,-500.0,0.00042465,31]
[312315706,1705769518545,-500.0,0.00042465,31]
[312315707,1705769518554,-500.0,0.00042465,31]
[312315708,1705769518564,-500.0,0.00042465,31]
[312315709,1705769518573,-500.0,0.00042465,31]
[312315710,1705769518582,-500.0,0.00042465,31]
[312315711,1705769518591,-1657.81,0.00042465,31]
[312315712,1705769518600,-500.0,0.00042465,31]
[312315713,1705769518610,-823.38,0.00042465,15]
[312315714,1705769518618,-500.0,0.00042465,31]
[312315715,1705769518627,-500.0,0.00042465,31]
[312315716,1705769518636,-500.0,0.00042465,31]
[312315717,1705769518645,-500.0,0.00042465,31]
[312315718,1705769518654,-500.0,0.00042465,31]
[312315719,1705769518663,-500.0,0.00042465,31]
[312315720,1705769518673,-500.0,0.00042465,31]
[312315721,1705769518682,-764.59,0.00042465,31]
[312315722,1705769518691,-500.0,0.00042465,31]
[312315723,1705769518701,-2794.82,0.00042465,31]
[312315724,1705769518711,-787.82,0.00042465,31]
[312315725,1705769518720,-500.0,0.00042465,31]
[312315726,1705769518729,-500.0,0.00042465,31]
[312315727,1705769518738,-500.0,0.00042465,31]
[312315728,1705769518747,-543.58,0.00042465,31]
[312315729,1705769518757,-500.0,0.00042465,31]
[312315730,1705769518767,-500.0,0.00042465,31]
[312315731,1705769518780,-741.74,0.00042465,31]
[312315732,1705769518789,-500.0,0.00042465,31]
[312315733,1705769518798,-500.0,0.00042465,31]
[312315734,1705769518807,-500.0,0.00042465,31]
[312315735,1705769518817,-826.59,0.00042465,31]
[312315736,1705769518827,-500.0,0.00042465,31]
[312315737,1705769518836,-500.0,0.00042465,31]
[312315738,1705769518846,-500.0,0.00042465,31]
[312315739,1705769518855,-500.0,0.00042465,31]
[312315740,1705769518866,-500.0,0.00042465,31]
[312315741,1705769518875,-582.77,0.00042465,31]
[312315742,1705769518884,-500.0,0.00042465,31]
[312315743,1705769518895,-1007.56,0.00042465,30]
[312315744,1705769518904,-500.0,0.00042465,31]
[312315745,1705769518914,-695.3,0.00042465,31]
[312315746,1705769518924,-500.0,0.00042465,31]
[312315747,1705769518933,-1122.8,0.00042465,31]
[312315748,1705769518942,-500.0,0.00042465,31]
[312315749,1705769518952,-500.0,0.00042465,31]
[312315750,1705769518961,-500.0,0.00042465,2]
[312315751,1705769518970,-1257.21,0.00042465,31]
[312315752,1705769518980,-500.0,0.00042465,31]
[312315753,1705769518989,-500.0,0.00042465,31]
[312315754,1705769518999,-605.28,0.00042465,31]
[312315755,1705769519008,-500.0,0.00042465,31]
[312315756,1705769519018,-500.0,0.00042465,31]
[312315757,1705769519027,-500.0,0.00042465,31]
[312315758,1705769519037,-564.98,0.00042465,5]
[312315759,1705769519047,-500.0,0.00042465,31]
[312315760,1705769519057,-500.0,0.00042465,31]
[312315761,1705769519066,-500.0,0.00042465,31]
[312315762,1705769519076,-500.0,0.00042465,31]
[312315763,1705769519085,-500.0,0.00042465,31]
[312315764,1705769519094,-500.0,0.00042465,31]
[312315765,1705769519104,-500.0,0.00042465,31]
[312315766,1705769519113,-500.0,0.00042465,31]
[312315767,1705769519123,-500.0,0.00042465,31]
[312315768,1705769519132,-500.0,0.00042465,31]
[312315769,1705769519141,-500.0,0.00042465,31]
[312315770,1705769519150,-725.04,0.00042465,31]
[312315771,1705769519160,-1000.0,0.000425,2]
[312315772,1705769519169,-500.0,0.000425,19]
[312315773,1705769519179,-400.0,0.000425,10]
[312315774,1705769519188,-500.0,0.000426,19]
[312315775,1705769519197,-3326.0,0.000427,92]
[312315776,1705769519207,-500.0,0.000427,19]
[312315777,1705769519216,-514.40879808,0.00042702,2]
[312315778,1705769519226,-1000.0,0.00042702,2]
[312315779,1705769519235,-151.0,0.00042739,14]
[312315780,1705769519244,-151.0,0.00042739,14]
[312315781,1705769519254,-151.0,0.00042739,14]
[312315782,1705769519263,-510.0,0.00042739,120]
[312315783,1705769519273,-500.0,0.00042739,31]
[312315784,1705769519283,-196.42,0.00042739,31]
[312315785,1705769519292,-515.47999845,0.00042739,31]
[312315786,1705769519301,-500.0,0.00042739,31]
[312315787,1705769519310,-1000.0,0.00042739,31]
[312315788,1705769519319,-443.86,0.00042739,31]
[312315789,1705769519329,-152.09337052,0.00042739,30]
[312315790,1705769519338,-337.59,0.00042739,31]
[312315791,1705769519348,-500.0,0.00042739,31]
[312315792,1705769519358,-500.0,0.00042739,31]
[312315793,1705769519367,-381.3,0.00042739,31]
[312315794,1705769519376,-366.71,0.00042739,31]
[312315795,1705769519385,-500.0,0.00042739,31]
[312315796,1705769519394,-393.35,0.00042739,31]
[312315797,1705769519403,-500.0,0.00042739,31]
[312315798,1705769519413,-500.0,0.00042739,31]
[312315799,1705769519422,-500.0,0.00042739,31]
[312315800,1705769519431,-500.0,0.00042739,31]
[312315801,1705769519442,-635.84,0.00042739,31]